bitfinex/quotes_ETHUSD_20240702
["timestamp","ask_amount","ask_price","bid_price","bid_amount"]
[1719932157385,0.50747361,3413.1,3412.7,0.27203253]
[1719932158875,0.55,3413.2,3412.7,0.27203253]
[1719932159200,0.50747626,3413.1,3412.7,0.27203253]
[1719932159398,0.50747558,3413.0,3412.7,0.27203253]
[1719932159627,0.50747558,3412.9,3412.7,0.27203253]
[1719932159940,0.55,3413.2,3412.7,0.27203253]
[1719932160142,0.50747544,3413.1,3412.7,0.27203253]
[1719932160314,0.50747544,3413.0,3412.7,0.27203253]
[1719932160514,0.55,3413.2,3412.7,0.27203253]
[1719932160515,0.50747544,3412.9,3412.7,0.27203253]
[1719932160819,0.50747544,3412.9,3412.3,3.0]
[1719932160820,0.55,3413.2,3412.4,0.27203253]
[1719932161030,0.55,3413.2,3412.3,0.27203253]
[1719932161031,0.50747623,3413.1,3412.3,0.27203253]
[1719932161234,0.50747623,3413.1,3411.7,7.0515]
[1719932161235,0.50747623,3413.1,3412.1,0.27203253]
[1719932161411,1.05750307,3413.0,3412.1,0.27203253]
[1719932161612,1.05750307,3412.9,3412.1,0.27203253]
[1719932161813,3.55,3413.2,3412.1,0.27203253]
[1719932161814,0.50750307,3412.8,3412.1,0.27203253]
[1719932162036,5.313,3413.2,3412.1,0.27203253]
[1719932162037,1.05750307,3412.7,3412.1,0.27203253]
[1719932162201,0.50750307,3412.6,3412.1,0.27203253]
[1719932162402,0.55,3412.7,3412.1,0.27203253]
[1719932163338,0.50749815,3412.6,3412.1,0.27203253]
[1719932163549,0.50749815,3412.5,3412.1,0.27203253]
[1719932163725,0.50751536,3412.6,3412.1,0.27203253]
[1719932164051,0.50751999,3412.5,3412.1,0.27203253]
[1719932164213,0.50751999,3412.5,3412.4,6.93493253]
[1719932164414,4.763,3413.6,3412.4,6.93493253]
[1719932164597,0.50752303,3413.5,3412.4,6.93493253]
[1719932164796,0.50752303,3413.4,3412.4,6.93493253]
[1719932165000,0.50752303,3413.3,3412.7,0.27203253]
[1719932165206,0.50752303,3413.2,3412.7,0.27203253]
[1719932165408,0.50752303,3413.1,3412.7,0.27203253]
[1719932165634,0.50752303,3413.0,3412.7,0.27203253]
[1719932165834,2.92,3413.7,3412.9,0.27203253]
[1719932166005,0.50747175,3413.6,3412.9,0.27203253]
[1719932166335,2.92,3413.7,3412.9,0.27203253]
[1719932166336,0.50747175,3413.5,3412.9,0.27203253]
[1719932166498,2.92,3413.7,3412.9,0.27203253]
[1719932166499,0.50747175,3413.4,3412.9,0.27203253]
[1719932166700,2.92,3413.7,3412.9,0.27203253]
[1719932166701,0.50747175,3413.3,3412.9,0.27203253]
[1719932166895,0.50747175,3413.2,3412.9,0.27203253]
[1719932167237,2.92,3413.7,3412.9,0.27203253]
[1719932167238,0.50747175,3413.1,3412.9,0.27203253]
[1719932167535,0.50746835,3413.0,3412.9,0.27203253]
[1719932169245,0.50746835,3413.0,3412.7,0.27203253]
[1719932169403,0.50746835,3412.9,3412.7,0.27203253]
[1719932169741,2.12399585,3413.6,3412.7,0.27203253]
[1719932169942,1.91889128,3413.5,3412.7,0.27203253]
[1719932170113,0.50747503,3413.4,3412.7,0.27203253]
[1719932170314,0.55,3413.3,3412.7,0.27203253]
[1719932170640,0.50747489,3413.2,3413.0,0.27203253]
[1719932170809,0.50747489,3413.1,3413.0,0.27203253]
[1719932171007,0.50747242,3413.1,3413.0,0.27203253]
[1719932173552,0.50747242,3413.1,3413.0,7.11143253]
[1719932173747,9.9934,3414.1,3413.6,0.27203253]
[1719932173748,2.13007958,3413.7,3413.6,0.27203253]
[1719932174051,1.36841078,3413.7,3413.6,0.27203253]
[1719932174207,1.36834903,3413.7,3413.6,0.27203253]
[1719932174564,3.49842861,3413.7,3413.6,0.27203253]
[1719932175431,1.36834903,3413.7,3413.6,0.27203253]
[1719932176136,10.93795697,3413.7,3412.9,0.27203253]
[1719932176334,2.13042815,3413.2,3412.9,0.27203253]
[1719932176667,0.55,3413.6,3412.9,0.27203253]
[1719932176878,2.13067711,3413.2,3412.9,0.27203253]
[1719932177044,0.50746882,3413.1,3412.9,0.27203253]
[1719932177576,2.63814593,3413.1,3412.9,0.27203253]
[1719932177730,0.50746882,3413.0,3412.9,0.27203253]
[1719932179029,2.13067711,3413.3,3413.2,0.27203253]
[1719932179288,0.50741702,3413.3,3413.2,0.27203253]
[1719932179865,2.13067711,3413.4,3413.2,0.27203253]
[1719932180036,0.50740073,3413.3,3413.2,0.27203253]
[1719932180659,2.63807784,3413.3,3413.2,0.27203253]
[1719932180879,1.36699722,3413.3,3413.2,0.27203253]
[1719932181180,2.63635376,3413.3,3413.2,0.27203253]
[1719932181863,1.85473154,3414.2,3413.2,0.27203253]
[1719932181864,2.51686234,3414.0,3413.8,0.27203253]
[1719932182073,0.85973108,3413.9,3413.8,0.27203253]
[1719932184575,2.51459409,3414.1,3413.8,7.30253253]
[1719932184794,2.51459409,3414.4,3414.3,0.27203253]
[1719932184987,0.86000455,3414.4,3414.3,0.27203253]
[1719932185134,2.51459409,3414.7,3414.3,0.27203253]
[1719932185337,0.86004703,3414.6,3414.3,0.27203253]
[1719932185574,2.51459409,3414.9,3414.3,0.27203253]
[1719932185845,0.85992104,3414.8,3414.3,0.27203253]
[1719932186146,0.85992104,3414.7,3414.3,0.27203253]
[1719932186877,2.51382142,3414.9,3414.3,0.27203253]
[1719932187074,1.4107227,3414.8,3414.3,0.27203253]
[1719932187278,0.55,3414.8,3414.3,0.27203253]
[1719932187484,2.51382142,3415.0,3414.3,0.27203253]
[1719932187485,0.55,3414.9,3414.3,0.27203253]
[1719932188883,0.55,3415.0,3414.3,0.27203253]
[1719932189092,0.55,3415.1,3414.3,0.27203253]
[1719932189857,2.51133067,3415.2,3414.8,0.27203253]
[1719932190060,12.81900382,3415.5,3414.8,0.27203253]
[1719932190061,2.51133067,3415.3,3414.8,0.27203253]
[1719932190264,0.86041723,3415.2,3414.8,0.27203253]
[1719932190577,2.51133067,3415.6,3414.8,0.27203253]
[1719932190748,0.86045258,3415.5,3414.8,0.27203253]
[1719932190971,2.51133067,3415.6,3414.8,0.27203253]
[1719932191171,0.86053753,3415.5,3414.8,0.27203253]
[1719932191507,2.51133067,3415.7,3414.8,0.27203253]
[1719932191667,0.86053851,3415.6,3414.8,0.27203253]
[1719932191864,0.50717829,3415.5,3414.8,0.27203253]
[1719932192109,1.05719824,3415.4,3414.8,0.27203253]
[1719932192315,0.50719824,3415.3,3414.8,0.27203253]
[1719932192497,0.55,3415.2,3414.8,0.27203253]
[1719932193303,0.55,3415.5,3414.8,0.27203253]
[1719932193504,0.50720517,3415.4,3414.8,0.27203253]
[1719932193667,1.05720517,3415.3,3414.8,0.27203253]
[1719932193873,0.50720517,3415.2,3414.8,0.27203253]
[1719932194093,0.50720517,3415.4,3414.8,0.27203253]
[1719932194304,0.55,3415.3,3414.8,0.27203253]
[1719932194604,0.50720517,3415.2,3414.8,0.27203253]
[1719932195210,0.55,3415.3,3414.8,0.27203253]
[1719932195384,0.50721845,3415.1,3414.8,0.27203253]
[1719932195584,0.55,3415.3,3414.8,0.27203253]
[1719932195802,0.50722203,3415.2,3414.8,0.27203253]
[1719932196112,1.05721588,3415.1,3414.5,0.27203253]
[1719932196412,0.55,3415.5,3414.7,0.27203253]
[1719932196413,0.50721588,3415.0,3414.7,0.27203253]
[1719932199094,0.50722872,3415.2,3414.9,0.27203253]
[1719932199279,0.50722872,3415.1,3414.9,0.27203253]
[1719932199617,0.50722872,3415.0,3414.9,0.27203253]
[1719932199791,0.50722872,3415.0,3414.7,7.04063253]
[1719932199989,3.05717973,3415.6,3414.9,0.27203253]
[1719932200186,0.50723079,3415.5,3414.9,0.27203253]
[1719932200387,1.05723079,3415.4,3414.9,0.27203253]
[1719932200590,1.05723079,3415.3,3414.9,0.27203253]
[1719932200816,0.50723079,3415.2,3414.9,0.27203253]
[1719932201180,0.50723079,3415.1,3414.9,0.27203253]
[1719932201378,0.50723049,3415.0,3414.9,0.27203253]
[1719932204739,0.50722844,3415.0,3414.9,0.27203253]
[1719932204877,0.55,3415.6,3414.9,0.27203253]
[1719932205078,0.50722826,3415.5,3414.9,0.27203253]
[1719932205331,1.05722826,3415.4,3414.9,0.27203253]
[1719932205495,0.50722826,3415.3,3414.9,0.27203253]
[1719932205814,1.05722826,3415.2,3414.9,0.27203253]
[1719932206028,0.50722826,3415.1,3414.9,0.27203253]
[1719932206203,0.50722826,3415.0,3414.9,0.27203253]
[1719932207928,0.55,3415.2,3414.9,0.27203253]
[1719932208106,0.50719855,3415.1,3414.9,0.27203253]
[1719932208287,0.55,3415.2,3414.9,0.27203253]
[1719932208491,0.50719028,3415.1,3414.9,0.27203253]
[1719932208691,0.50719028,3415.0,3414.9,0.27203253]
[1719932209530,7.0425,3416.1,3415.5,0.27203253]
[1719932209703,0.50714411,3415.9,3415.5,0.27203253]
[1719932209905,0.50714411,3415.8,3415.5,0.27203253]
[1719932210111,0.50714411,3415.7,3415.5,0.27203253]
[1719932210311,0.50714411,3415.6,3415.5,0.27203253]
[1719932211126,0.5071181,3415.6,3415.5,0.27203253]
[1719932211287,0.5071181,3415.6,3415.3,0.27203253]
[1719932211493,0.50712775,3415.5,3415.3,0.27203253]
[1719932211723,0.50712775,3415.4,3415.3,0.27203253]
[1719932211950,0.2937,3416.1,3415.3,0.27203253]
[1719932212153,1.35082775,3416.0,3415.3,0.27203253]
[1719932212452,0.50712775,3415.9,3415.3,0.27203253]
[1719932212596,1.05712775,3415.8,3415.5,0.27203253]
[1719932212800,0.2937,3416.0,3415.5,0.27203253]
[1719932212801,0.50712775,3415.7,3415.5,0.27203253]
[1719932213128,0.50712775,3415.6,3415.5,0.27203253]
[1719932214039,0.2937,3416.2,3415.5,0.27203253]
[1719932214337,0.2937,3416.0,3415.8,0.27203253]
[1719932214537,0.50711007,3415.9,3415.8,0.27203253]
[1719932215332,0.50711007,3415.9,3415.6,0.27203253]
[1719932216608,0.55,3415.8,3415.1,0.27203253]
[1719932216931,0.50711007,3415.7,3415.1,0.27203253]
[1719932217109,0.55,3415.6,3415.1,0.27203253]
[1719932217294,0.5071938,3415.5,3415.1,0.27203253]
[1719932217631,0.5071938,3415.4,3415.1,0.27203253]
[1719932217821,0.5071938,3415.3,3415.1,0.27203253]
[1719932218026,0.5071938,3415.2,3415.1,0.27203253]
[1719932220398,0.5071901,3415.2,3415.1,0.27203253]
[1719932220811,0.55,3415.6,3415.1,0.27203253]
[1719932221163,2.0567,3416.1,3415.0,6.804]
[1719932221164,0.50718711,3415.5,3415.4,0.27203253]
[1719932222813,0.50714013,3415.5,3415.4,0.27203253]
[1719932225949,0.8437,3416.0,3415.4,0.27203253]
[1719932226110,3.89270229,3415.9,3415.4,0.27203253]
[1719932226310,1.92336562,3415.8,3415.4,0.27203253]
[1719932226637,1.37336562,3415.7,3415.4,0.27203253]
[1719932226859,0.50713227,3415.6,3415.4,0.27203253]
[1719932227047,0.50713227,3415.5,3415.4,0.27203253]
[1719932227638,1.37376597,3415.5,3415.4,0.27203253]
[1719932229027,0.8666337,3415.5,3415.4,0.27203253]
[1719932229262,3.0312728,3415.5,3415.4,0.27203253]
[1719932229576,1.37377441,3415.5,3415.1,0.27203253]
[1719932229861,3.89822831,3415.4,3415.1,0.27203253]
[1719932230168,2.5244539,3415.4,3415.3,0.27203253]
[1719932230334,3.89776898,3415.4,3415.1,0.27203253]
[1719932230669,3.89776898,3415.3,3415.1,0.27203253]
[1719932230867,0.55,3415.8,3415.1,0.27203253]
[1719932230868,0.50715874,3415.2,3415.1,0.27203253]
[1719932232261,2.52393953,3415.4,3415.3,0.27203253]
[1719932232461,3.89704231,3415.4,3415.3,0.27203253]
[1719932232764,1.37336082,3415.4,3415.3,0.27203253]
[1719932232964,3.89696342,3415.4,3415.3,0.27203253]
[1719932233568,1.37336082,3415.4,3415.3,0.27203253]
[1719932233769,3.89746863,3415.4,3415.3,0.27203253]
[1719932235390,3.89723315,3415.4,3415.3,0.9854918]
[1719932235666,3.89723315,3415.4,3415.3,3.5084918]
[1719932235667,1.37332751,3415.4,3415.3,3.5084918]
[1719932235865,0.50714096,3415.4,3415.3,9.85793253]
[1719932236455,2.81787143,3416.0,3415.9,0.27203253]
[1719932236689,4.19143107,3416.0,3415.9,0.27203253]
[1719932236986,1.37355964,3416.0,3415.9,0.27203253]
[1719932238432,1.01407436,3416.0,3415.9,0.27203253]
[1719932238632,0.50703501,3416.0,3415.9,0.27203253]
[1719932239843,1.37384669,3416.0,3415.9,0.27203253]
[1719932240043,0.50703501,3416.0,3415.9,0.27203253]
[1719932241455,0.50704489,3416.0,3415.9,0.27203253]
[1719932244659,2.52263703,3416.2,3416.1,0.27203253]
[1719932244858,1.37391262,3416.2,3416.1,0.27203253]
[1719932247795,1.37390236,3416.2,3416.1,0.27203253]
[1719932247978,1.3739014,3416.2,3416.1,0.27203253]
[1719932248281,3.89775082,3416.2,3416.1,0.27203253]
[1719932248485,1.3739014,3416.2,3416.1,0.27203253]
[1719932248782,3.89787024,3416.2,3416.1,0.27203253]
[1719932249563,1.3739014,3416.2,3416.1,0.27203253]
[1719932249887,3.89787024,3416.2,3416.1,0.27203253]
[1719932250280,1.3739014,3416.2,3416.1,0.27203253]
[1719932250478,3.89787024,3416.2,3416.1,0.27203253]
[1719932251108,3.89869837,3416.2,3416.1,0.27203253]
[1719932251388,10.63184648,3418.3,3416.6,0.27203253]
[1719932251597,10.63184648,3418.3,3416.1,9.3556]
[1719932251598,7.1495,3418.3,3417.4,0.27203253]
[1719932252349,8.9125,3418.3,3417.4,0.27203253]
[1719932254000,0.55,3418.2,3417.4,0.27203253]
[1719932267516,1.761,3418.0,3417.0,0.27203253]
[1719932267737,2.52278138,3417.9,3417.0,0.27203253]
[1719932268012,0.21178138,3417.8,3417.0,0.27203253]
[1719932268211,0.55,3417.7,3417.0,0.27203253]
[1719932268408,2.311,3417.9,3417.0,0.27203253]
[1719932268612,0.21175601,3417.8,3417.0,0.27203253]
[1719932268813,0.55,3417.7,3417.0,0.27203253]
[1719932269056,2.311,3417.9,3417.0,0.27203253]
[1719932269215,0.21175913,3417.8,3417.0,0.27203253]
[1719932269417,0.55,3417.7,3417.0,0.27203253]
[1719932269616,2.311,3417.9,3417.0,0.27203253]
[1719932269947,0.21175818,3417.8,3417.0,0.27203253]
[1719932270148,0.55,3417.7,3417.0,0.27203253]
[1719932270556,2.311,3418.0,3417.0,0.27203253]
[1719932270858,0.21179841,3417.9,3417.0,0.27203253]
[1719932271043,0.76179841,3417.8,3417.2,0.27203253]
[1719932271225,0.55,3417.8,3417.2,0.27203253]
[1719932271727,0.55,3417.9,3417.2,0.27203253]
[1719932272140,0.21183215,3417.8,3417.0,0.27203253]
[1719932272358,0.55,3417.7,3417.2,0.27203253]
[1719932272661,3.55,3417.9,3417.0,0.27203253]
[1719932272858,0.21182678,3417.8,3417.0,0.27203253]
[1719932273024,0.55,3417.7,3417.0,0.27203253]
[1719932273350,0.55,3417.7,3417.2,0.27203253]
[1719932273559,0.55,3417.9,3417.0,0.27203253]
[1719932273717,0.21180887,3417.8,3417.2,0.27203253]
[1719932273918,0.55,3417.7,3417.0,0.27203253]
[1719932274141,0.55,3417.9,3417.2,0.27203253]
[1719932274331,0.21179427,3417.8,3417.2,0.27203253]
[1719932274535,0.55,3417.7,3417.2,0.27203253]
[1719932274918,0.55,3417.9,3417.2,0.27203253]
[1719932275249,0.21179165,3417.8,3417.0,0.27203253]
[1719932275548,0.76179165,3417.7,3417.2,0.27203253]
[1719932275747,0.55,3417.7,3417.2,0.27203253]
[1719932275951,0.55,3417.9,3417.2,0.27203253]
[1719932276254,0.21175389,3417.8,3417.2,0.27203253]
[1719932276428,0.76175389,3417.7,3417.2,0.27203253]
[1719932276629,0.55,3417.6,3417.2,0.27203253]
[1719932276829,0.55,3417.9,3417.2,0.27203253]
[1719932277151,0.21175212,3417.8,3417.2,0.27203253]
[1719932277359,0.76175212,3417.7,3417.2,0.27203253]
[1719932277653,0.55,3417.6,3417.2,0.27203253]
[1719932277825,0.55,3417.9,3417.2,0.27203253]
[1719932278024,0.21175299,3417.8,3417.2,0.27203253]
[1719932278225,0.76175299,3417.7,3417.2,0.27203253]
[1719932278426,0.55,3417.9,3417.2,0.27203253]
[1719932278622,0.21175863,3417.8,3417.2,0.27203253]
[1719932278947,0.76175912,3417.7,3417.2,0.27203253]
[1719932279154,0.55,3417.6,3417.2,0.27203253]
[1719932279335,0.55,3417.9,3417.2,0.27203253]
[1719932279535,0.21179754,3417.8,3417.2,0.27203253]
[1719932279752,0.76179754,3417.7,3417.2,0.27203253]
[1719932280059,0.21179754,3417.6,3417.2,0.27203253]
[1719932280226,0.21179754,3417.5,3417.2,0.27203253]
[1719932280422,0.55,3417.9,3417.2,0.27203253]
[1719932280731,0.21180793,3417.8,3417.6,1.051]
[1719932280930,0.55,3418.0,3417.6,1.051]
[1719932281117,0.21182883,3417.9,3417.6,1.051]
[1719932281323,0.76182883,3417.8,3417.6,1.051]
[1719932281548,0.55,3418.0,3417.6,1.051]
[1719932281732,0.21185418,3417.9,3417.4,1.051]
[1719932281945,0.76185418,3417.8,3417.4,1.051]
[1719932282124,0.76185418,3417.7,3417.2,7.34603253]
[1719932282320,0.21185418,3417.6,3417.2,7.34603253]
[1719932282622,0.55,3418.0,3417.2,1.32303253]
[1719932282822,0.21186796,3417.9,3417.2,1.32303253]
[1719932283036,0.76186796,3417.8,3417.2,1.32303253]
[1719932283233,0.21186796,3417.7,3417.2,1.32303253]
[1719932283416,0.21186796,3417.7,3417.2,1.051]
[1719932283629,0.55,3417.6,3417.1,1.051]
[1719932283857,0.21186796,3417.5,3417.1,1.051]
[1719932284151,0.55,3417.4,3417.1,1.051]
[1719932285758,0.21235425,3417.3,3417.1,1.051]
[1719932285941,0.55,3417.4,3417.1,1.051]
[1719932286327,0.21238967,3417.3,3417.1,1.051]
[1719932286528,0.55,3417.4,3417.1,1.051]
[1719932286725,0.21235091,3417.3,3417.1,1.051]
[1719932286930,0.55,3417.4,3417.1,1.051]
[1719932287148,0.21227149,3417.3,3417.1,1.051]
[1719932287349,0.55,3417.4,3417.1,1.051]
[1719932287552,0.2122063,3417.3,3417.1,1.051]
[1719932287753,0.55,3417.4,3417.0,0.27203253]
[1719932287944,0.21213085,3417.3,3417.0,0.27203253]
[1719932288143,0.55,3417.4,3416.8,0.27203253]
[1719932288144,0.76213085,3417.2,3416.8,0.27203253]
[1719932288329,0.21213085,3417.1,3416.8,1.32303253]
[1719932288533,0.55,3417.4,3416.8,1.32303253]
[1719932288771,0.21192951,3417.3,3416.8,1.32303253]
[1719932288946,0.76192951,3417.2,3416.8,1.32303253]
[1719932289139,0.21192951,3417.1,3416.8,0.27203253]
[1719932289467,0.21189683,3417.0,3416.8,1.32303253]
[1719932289644,0.55,3417.5,3416.8,1.32303253]
[1719932289844,3.03749923,3417.4,3416.8,1.32303253]
[1719932290050,3.58749923,3417.3,3417.0,1.051]
[1719932290270,3.03749923,3417.2,3417.0,1.051]
[1719932290573,3.03749923,3417.1,3416.8,1.32303253]
[1719932290867,0.21194122,3417.0,3416.8,1.32303253]
[1719932291073,2.8241566,3416.9,3416.8,0.27203253]
[1719932291367,3.03597417,3416.9,3416.4,0.27203253]
[1719932291571,3.03597417,3416.8,3416.4,1.32303253]
[1719932291734,3.03597417,3416.7,3416.4,0.27203253]
[1719932291939,3.03597417,3416.6,3416.4,1.32303253]
[1719932292158,3.03597417,3416.5,3416.4,0.27203253]
[1719932294074,0.21181757,3416.5,3416.4,0.27203253]
[1719932294375,7.71108923,3417.3,3416.4,1.12305578]
[1719932294561,7.71108923,3417.3,3416.7,1.051]
[1719932294562,3.03512638,3417.2,3416.7,1.051]
[1719932294740,3.58512638,3417.1,3416.7,1.051]
[1719932294935,3.03512638,3417.0,3416.7,1.051]
[1719932295239,3.58512638,3416.9,3416.7,1.051]
[1719932295465,3.03512638,3416.8,3416.7,1.051]
[1719932297099,0.21178686,3416.8,3416.7,1.051]
[1719932297254,3.03319237,3416.8,3416.7,1.051]
[1719932298778,3.03319237,3416.8,3416.7,8.2154]
[1719932298779,2.82140551,3416.8,3416.7,8.2154]
[1719932299084,3.08616043,3417.3,3416.7,9.06414325]
[1719932299245,3.08616043,3417.3,3417.2,1.32303253]
[1719932299582,3.29781358,3417.3,3417.2,1.32303253]
[1719932300045,6.11959179,3417.3,3417.2,1.32303253]
[1719932300252,0.21165315,3417.3,3417.2,1.32303253]
[1719932300883,3.03260738,3417.3,3417.2,1.32303253]
[1719932303579,5.16153047,3417.3,3417.2,1.32303253]
[1719932304147,5.16153047,3417.3,3417.2,0.27203253]
[1719932306544,0.21165315,3417.3,3417.2,0.27203253]
[1719932306782,3.03042327,3417.3,3417.2,0.27203253]
[1719932306989,0.21165315,3417.3,3417.2,0.27203253]
[1719932307284,3.03135386,3417.3,3417.2,0.27203253]
[1719932307490,0.21165315,3417.3,3417.2,0.27203253]
[1719932307867,5.16028826,3417.3,3417.2,0.27203253]
[1719932309189,0.21165315,3417.3,3417.2,0.27203253]
[1719932309608,5.16201463,3417.3,3417.2,0.27203253]
[1719932309756,5.1620653,3417.3,3417.2,0.27203253]
[1719932312896,0.21165315,3417.3,3417.2,0.27203253]
[1719932313211,5.16075602,3417.3,3417.2,0.27203253]
[1719932316215,0.21165315,3417.3,3417.2,0.27203253]
[1719932316430,3.0310955,3417.3,3417.2,0.27203253]
[1719932316735,5.1599264,3417.3,3417.2,0.27203253]
[1719932319345,5.15969514,3417.3,3417.2,0.27203253]
[1719932319703,5.15977469,3417.3,3417.2,0.27203253]
[1719932321506,5.15977469,3417.3,3417.0,0.27203253]
[1719932321842,7.0159,3417.4,3416.8,0.27203253]
[1719932321843,5.15977469,3417.2,3416.8,0.27203253]
[1719932322044,5.15977469,3417.1,3416.8,0.27203253]
[1719932322215,0.55,3417.3,3416.8,0.27203253]
[1719932322216,5.15977469,3417.0,3416.8,0.27203253]
[1719932322568,3.03028573,3416.9,3416.8,0.27203253]
[1719932322772,0.21165315,3416.9,3416.8,0.27203253]
[1719932323063,5.15945695,3416.9,3416.8,0.27203253]
[1719932323275,5.15945695,3416.9,3416.6,0.27203253]
[1719932323484,5.15945695,3416.8,3416.4,0.27203253]
[1719932323626,5.15945695,3416.8,3416.2,0.27203253]
[1719932323627,5.15945695,3416.7,3416.2,0.27203253]
[1719932323985,5.15945695,3416.6,3416.2,0.27203253]
[1719932324124,5.15945695,3416.5,3416.0,0.27203253]
[1719932324330,5.15945695,3416.4,3416.0,0.27203253]
[1719932324627,5.15945695,3416.3,3416.0,0.27203253]
[1719932324821,4.9478038,3416.2,3416.0,0.27203253]
[1719932325104,4.9478038,3416.1,3416.0,0.27203253]
[1719932325428,0.55,3416.6,3416.0,0.27203253]
[1719932325626,0.21131407,3416.5,3416.0,0.27203253]
[1719932325863,5.15774565,3416.4,3416.0,1.32303253]
[1719932326026,5.15774565,3416.3,3416.0,0.27203253]
[1719932326228,3.08118121,3416.6,3416.0,0.27203253]
[1719932326229,5.15771545,3416.2,3416.0,0.27203253]
[1719932326465,3.08118121,3416.6,3415.8,0.27203253]
[1719932326466,5.15771545,3416.1,3415.8,0.27203253]
[1719932326792,3.08118121,3416.6,3415.8,0.27203253]
[1719932326793,5.15771545,3416.0,3415.8,0.27203253]
[1719932327072,1.051,3416.5,3415.8,0.27203253]
[1719932327073,2.12961352,3415.9,3415.8,0.27203253]
[1719932327226,5.49670217,3416.4,3415.8,1.32303253]
[1719932327427,5.15829438,3416.3,3416.1,0.27203253]
[1719932327651,5.70830362,3416.2,3415.9,0.27203253]
[1719932327851,5.15830362,3416.1,3415.9,0.27203253]
[1719932328067,5.15830362,3416.0,3415.9,0.27203253]
[1719932328568,5.15884846,3416.0,3415.9,0.27203253]
[1719932329344,4.9475033,3416.0,3415.9,0.27203253]
[1719932329591,4.9475033,3416.3,3415.9,0.27203253]
[1719932329727,5.70891301,3416.2,3415.9,0.27203253]
[1719932330095,5.15891301,3416.1,3415.9,0.27203253]
[1719932330267,4.9475033,3416.0,3415.9,0.27203253]
[1719932330466,2.12977204,3416.0,3415.9,0.27203253]
[1719932330694,4.9475033,3416.0,3415.9,0.27203253]
[1719932330898,4.9475033,3416.3,3415.9,0.27203253]
[1719932331050,5.70891169,3416.2,3415.9,0.27203253]
[1719932331253,5.15891169,3416.1,3415.9,0.27203253]
[1719932331492,4.9475033,3416.0,3415.9,0.27203253]
[1719932331677,2.81773126,3416.0,3415.9,0.27203253]
[1719932331859,4.9475033,3416.0,3415.9,0.27203253]
[1719932332054,0.55,3416.2,3415.9,0.27203253]
[1719932332265,4.94778224,3416.1,3415.9,0.27203253]
[1719932332469,4.94778224,3416.0,3415.9,0.27203253]
[1719932332695,2.12977225,3416.0,3415.9,0.27203253]
[1719932332880,2.12977225,3416.4,3415.9,0.27203253]
[1719932333085,5.70914107,3416.3,3415.9,0.27203253]
[1719932333285,5.15914107,3416.2,3415.9,0.27203253]
[1719932333607,4.947745,3416.1,3415.9,0.27203253]
[1719932333764,2.12977225,3416.0,3415.9,0.27203253]
[1719932334292,0.55,3416.3,3415.9,0.27203253]
[1719932334293,2.12977225,3416.2,3415.9,0.27203253]
[1719932334599,4.94753772,3416.1,3415.9,0.27203253]
[1719932334769,2.129748,3416.0,3415.9,0.27203253]
[1719932334952,2.12974826,3416.0,3415.9,0.27203253]
[1719932335158,2.12974826,3416.2,3415.9,0.27203253]
[1719932335358,6.8455,3416.6,3416.1,0.27203253]
[1719932335605,5.70880664,3416.5,3416.1,0.27203253]
[1719932335774,5.15880664,3416.4,3416.1,0.27203253]
[1719932335966,5.15880664,3416.3,3416.1,0.27203253]
[1719932336311,2.12971856,3416.2,3416.1,0.27203253]
[1719932336674,2.12971856,3416.4,3416.1,0.27203253]
[1719932337009,2.12971856,3416.3,3416.1,0.27203253]
[1719932337181,2.12971856,3416.2,3416.1,0.27203253]
[1719932337362,2.12971856,3416.4,3416.1,0.27203253]
[1719932337567,2.12971856,3416.3,3416.1,0.27203253]
[1719932337878,2.12960497,3416.2,3416.1,0.27203253]
[1719932338712,2.12960497,3416.4,3416.1,0.27203253]
[1719932339009,4.94704489,3416.3,3416.1,0.27203253]
[1719932339204,4.94704489,3416.2,3415.9,0.27203253]
[1719932339511,2.12960497,3416.1,3415.9,0.27203253]
[1719932339808,0.55,3416.2,3416.0,12.87039503]
[1719932340466,2.11615972,3416.1,3416.0,12.87039503]
[1719932340662,2.66676057,3416.1,3416.0,12.87039503]
[1719932340915,4.57213528,3416.1,3416.0,12.87039503]
[1719932343279,4.57212524,3416.1,3416.0,12.87039503]
[1719932343883,4.57171508,3416.1,3416.0,12.87039503]
[1719932344612,5.62271508,3416.1,3416.0,12.87039503]
[1719932345638,4.57171508,3416.1,3416.0,12.87039503]
[1719932346197,2.66676057,3416.1,3416.0,12.87039503]
[1719932346396,4.57085851,3416.1,3416.0,12.87039503]
[1719932346597,2.66676057,3416.1,3416.0,12.87039503]
[1719932346898,2.11676057,3416.1,3416.0,12.87039503]
[1719932347535,1.905379,3416.1,3416.0,12.87039503]
[1719932348128,1.905379,3416.1,3416.0,14.56177032]
[1719932349426,1.905379,3416.1,3416.0,21.79727032]
[1719932350448,1.905379,3416.1,3416.0,22.84827032]
[1719932351299,0.82149825,3416.1,3416.0,22.84827032]
[1719932351695,0.82149825,3416.1,3416.0,24.31927032]
[1719932356745,0.82149825,3416.1,3416.0,14.56177032]
[1719932356959,0.82149825,3416.1,3416.0,13.14242756]
[1719932357867,7.28,3416.7,3416.0,13.14242756]
[1719932358036,7.28,3416.7,3416.2,0.27203253]
[1719932358362,7.28,3416.7,3416.5,0.27203253]
[1719932358566,7.28,3416.7,3416.2,0.27203253]
[1719932359229,6.8848,3416.9,3416.5,0.27203253]
[1719932359431,0.55,3416.8,3416.5,0.27203253]
[1719932359933,0.55,3416.8,3416.2,0.27203253]
[1719932361353,0.21151142,3416.7,3416.2,0.27203253]
[1719932361595,0.55,3416.8,3416.2,0.27203253]
[1719932361596,0.55,3416.6,3416.2,0.27203253]
[1719932361974,0.55,3416.8,3416.2,0.27203253]
[1719932362275,0.21151262,3416.7,3416.2,0.27203253]
[1719932362476,0.55,3416.6,3416.2,0.27203253]
[1719932362681,0.55,3416.8,3416.2,0.27203253]
[1719932362888,0.21150081,3416.7,3416.2,0.27203253]
[1719932363203,0.76151224,3416.6,3416.2,0.27203253]
[1719932363492,0.55,3416.6,3416.2,0.27203253]
[1719932363697,0.55,3416.8,3416.2,0.27203253]
[1719932363867,1.65238307,3416.7,3416.2,0.27203253]
[1719932364072,2.20238307,3416.6,3416.2,0.27203253]
[1719932364272,0.55,3416.6,3416.2,0.27203253]
[1719932364467,1.65233674,3416.5,3416.0,13.14242756]
[1719932364692,2.20233674,3416.4,3416.0,12.87039503]
[1719932364891,0.21150964,3416.3,3416.0,12.87039503]
[1719932365095,0.7614995,3416.2,3416.0,12.87039503]
[1719932365397,1.65226375,3416.1,3416.0,12.87039503]
[1719932365581,2.20226375,3416.1,3416.0,12.87039503]
[1719932367098,2.20226375,3416.1,3416.0,12.51847016]
[1719932368197,2.2022479,3416.1,3416.0,12.51847016]
[1719932368405,0.7614995,3416.1,3416.0,12.51847016]